bitfinex-derivatives/quotes_SOLF0:USTF0_20250125
["timestamp","ask_amount","ask_price","bid_price","bid_amount"]
[1737830417326,0.02460658,260.52,260.5,3.8393]
[1737830418525,5.76026036,260.51,260.46,0.0292313]
[1737830420125,5.76026036,260.51,260.46,3.8690313]
[1737830422022,5.76026036,260.51,260.47,3.8397]
[1737830423726,0.02460658,260.52,260.51,3.8391]
[1737830435843,3.8371,260.66,260.5,5.76026036]
[1737830436143,3.8371,260.66,260.6,9.59806036]
[1737830436337,7.03246036,260.69,260.6,5.76026036]
[1737830436544,5.76026036,260.67,260.58,5.76026036]
[1737830436841,5.76026036,260.7,260.61,5.76026036]
[1737830437040,0.02738783,260.65,260.61,5.76026036]
[1737830437640,0.02738783,260.65,260.6,0.02676603]
[1737830437835,0.02738783,260.65,260.6,3.86456603]
[1737830438743,0.02738783,260.65,260.6,0.02676603]
[1737830439041,5.78764819,260.65,260.6,0.02676603]
[1737830439839,3.8377,260.61,260.6,0.02676603]
[1737830440836,5.76026036,260.62,260.53,5.76026036]
[1737830441841,5.76026036,260.65,260.56,5.76026036]
[1737830442043,0.02727432,260.6,260.56,5.76026036]
[1737830442642,0.02727432,260.6,260.58,3.8381]
[1737830442841,0.02727432,260.6,260.56,5.76026036]
[1737830444145,0.02727432,260.6,260.56,9.59856036]
[1737830445642,0.02727432,260.6,260.57,3.8382]
[1737830446049,0.02727432,260.6,260.56,5.76026036]
[1737830447247,0.02727432,260.6,260.55,0.02952894]
[1737830448045,0.02727432,260.6,260.56,3.8383]
[1737830448750,0.02727432,260.6,260.58,3.8381]
[1737830450150,0.02727432,260.6,260.59,3.838]
[1737830452451,3.8383,260.57,260.55,0.02952894]
[1737830452753,5.76026036,260.57,260.49,10.03857258]
[1737830452951,5.76026036,260.56,260.49,3.8394]
[1737830453651,5.76026036,260.56,260.5,0.0265095]
[1737830454153,5.76026036,260.56,260.5,3.8658095]
[1737830455355,5.76026036,260.56,260.51,3.8391]
[1737830459753,9.59866036,260.56,260.5,0.0265095]
[1737830460555,5.76026036,260.56,260.5,0.0265095]
[1737830460753,3.8389,260.53,260.5,0.0265095]
[1737830461455,3.86349533,260.54,260.5,0.0265095]
[1737830463457,0.02479533,260.54,260.5,0.0265095]
[1737830463957,5.76026036,260.53,260.41,10.03857258]
[1737830464158,9.59986036,260.48,260.41,3.8406]
[1737830464861,3.8401,260.45,260.39,139.71678179]
[1737830465056,3.8401,260.45,260.42,0.02523455]
[1737830465654,0.02460245,260.47,260.42,0.02523455]
[1737830466360,3.8399,260.46,260.42,0.02523455]
[1737830466658,5.76026036,260.45,260.32,10.03857258]
[1737830466859,5.76026036,260.33,260.32,3.98907258]
[1737830467361,5.76026036,260.33,260.31,156.34037747]
[1737830467757,0.02733449,260.35,260.31,156.34037747]
[1737830467958,9.01647111,260.38,260.31,156.34037747]
[1737830468256,3.8416,260.35,260.31,156.34037747]
[1737830468556,0.02905677,260.36,260.3,0.02518337]
[1737830468758,3.8416,260.35,260.3,0.02518337]
[1737830469062,9.01647111,260.31,260.14,129.67820921]
[1737830469259,9.01647111,260.27,260.14,129.67820921]
[1737830469856,9.01647111,260.27,260.21,3.8435]
[1737830470057,0.02604268,260.23,260.18,0.02674073]
[1737830471164,0.02604268,260.23,260.19,3.8438]
[1737830472563,4.268e-05,260.23,260.21,3.8435]
[1737830475965,4.268e-05,260.23,260.18,0.02674073]
[1737830477471,3.844,260.18,260.1,3.8451]
[1737830477666,3.844,260.18,260.03,1.2439]
[1737830478273,12.86027111,260.2,260.03,1.2439]
[1737830478472,12.86027111,260.2,260.04,0.70629131]
[1737830478673,0.02779673,260.14,260.12,3.8448]
[1737830479475,0.02779673,260.14,260.1,3.8451]
[1737830479773,0.02779673,260.14,260.09,0.02836357]
[1737830480665,0.02779673,260.14,260.09,3.87366357]
[1737830480870,0.02779673,260.14,260.09,0.02836357]
[1737830481173,0.02779673,260.14,260.1,3.8451]
[1737830481575,0.02779673,260.14,260.09,0.02836357]
[1737830482274,3.87249673,260.14,260.09,0.02836357]
[1737830482571,3.8448,260.13,260.09,0.02836357]
[1737830482972,0.02779673,260.14,260.09,0.02836357]
[1737830483276,9.673e-05,260.14,260.11,9.01647111]
[1737830483475,9.673e-05,260.14,260.12,3.8448]
[1737830487574,9.673e-05,260.14,260.09,0.02836357]
[1737830487774,3.8439,260.19,260.09,0.02836357]
[1737830488878,0.02538269,260.17,260.09,0.02836357]
[1737830489180,0.02538269,260.17,260.12,3.8449]
[1737830489677,0.02538269,260.17,260.09,0.02836357]
[1737830491382,3.8451,260.11,260.09,0.02836357]
[1737830491976,9.01647111,260.15,260.09,0.02836357]
[1737830492178,1.336,260.14,260.09,0.02836357]
[1737830492884,3.8451,260.11,260.09,0.02836357]
[1737830493284,1.336,260.14,260.04,3.846]
[1737830493485,3.8458,260.06,260.0,3.8466]
[1737830493688,3.8458,260.06,259.94,9.01647111]
[1737830493887,3.8458,260.06,259.95,0.70652652]
[1737830494487,3.8456,260.08,260.0,3.8466]
[1737830494686,0.02501439,260.03,260.0,3.8466]
[1737830496280,0.02501439,260.03,259.98,0.02773481]
[1737830496485,9.0414855,260.03,259.98,0.02773481]
[1737830496686,3.8467,260.0,259.98,0.02773481]
[1737830498289,0.02501439,260.03,259.99,3.8468]
[1737830498484,0.02501439,260.03,259.98,0.02773481]
[1737830499091,0.02501439,260.03,260.01,3.8464]
[1737830499390,0.02501439,260.03,259.98,0.02773481]
[1737830499587,0.02501439,260.03,260.01,3.8465]
[1737830499988,0.02501439,260.03,259.98,0.02773481]
[1737830502092,0.02501439,260.03,260.01,3.8465]
[1737830502990,0.00304129,260.03,259.98,129.70594402]
[1737830503191,0.00304129,260.03,259.99,3.8467]
[1737830503491,0.00304129,260.03,259.98,129.70594402]
[1737830505086,0.00304129,260.03,260.0,3.8466]
[1737830506095,3.8464,260.02,259.98,129.70594402]
[1737830506291,0.00304129,260.03,259.98,129.70594402]
[1737830506493,9.01647111,260.02,259.84,21.37351734]
[1737830506695,9.01647111,259.92,259.85,0.70684999]
[1737830506996,9.01647111,259.92,259.83,156.34037747]
[1737830507193,3.8481,259.91,259.85,3.8489]
[1737830507497,9.01647111,259.92,259.83,156.34037747]
[1737830507698,0.02555112,259.91,259.85,0.02491019]
[1737830508799,3.8484,259.89,259.85,0.02491019]
[1737830509498,0.02555112,259.91,259.85,0.02491019]
[1737830509801,3.8487,259.87,259.85,0.02491019]
[1737830510002,9.01647111,259.88,259.85,0.02491019]
[1737830510500,0.02555112,259.91,259.85,0.02491019]
[1737830512503,0.02555112,259.91,259.78,8.54746328]
[1737830512705,0.02555112,259.91,259.89,3.8483]
[1737830512902,9.01647111,260.0,259.8,9.01647111]
[1737830513306,12.86327111,260.0,259.8,9.01647111]
[1737830513604,9.01647111,260.0,259.8,9.01647111]
[1737830513803,0.02802019,259.93,259.88,3.8483]
[1737830514199,0.02802019,259.93,259.87,0.02761441]
[1737830515704,3.8481,259.91,259.87,0.02761441]
[1737830516305,9.01647111,259.92,259.87,0.02761441]
[1737830516506,9.01647111,259.88,259.87,0.02761441]
[1737830517905,3.8488,259.86,259.79,3.8497]
[1737830518305,9.01647111,259.84,259.78,3.8499]
[1737830519101,12.89000003,259.84,259.78,3.87541134]
[1737830519298,9.04090003,259.84,259.78,0.02551134]
[1737830519707,3.8492,259.83,259.78,3.87541134]
[1737830519907,0.02442892,259.84,259.78,0.02551134]
[1737830520308,0.02442892,259.84,259.82,3.8493]
[1737830522000,0.02442892,259.84,259.8,3.8495]
[1737830522210,0.02442892,259.84,259.78,0.02551134]
[1737830523009,9.01647111,259.81,259.78,0.02551134]
[1737830523608,9.01647111,259.81,259.67,2.6029]
[1737830523808,9.01647111,259.76,259.7,3.851]
[1737830524706,3.209e-05,259.76,259.7,0.02588497]
[1737830525706,3.209e-05,259.76,259.74,3.8505]
[1737830527311,3.209e-05,259.76,259.73,3.8506]
[1737830528012,3.209e-05,259.76,259.71,3.8508]
[1737830528810,3.209e-05,259.76,259.7,0.02588497]
[1737830529608,3.209e-05,259.76,259.74,3.8505]
[1737830531615,3.209e-05,259.76,259.7,0.02588497]
[1737830531808,3.209e-05,259.76,259.75,3.8504]
[1737830532814,3.209e-05,259.76,259.64,9.01647111]
[1737830533914,3.209e-05,259.76,259.67,0.02889996]
[1737830534116,3.209e-05,259.76,259.75,3.8504]
[1737830536416,3.85033209,259.76,259.73,0.02732914]
[1737830536816,3.209e-05,259.76,259.73,0.02732914]
[1737830537519,3.85033209,259.76,259.73,0.02732914]
[1737830538319,3.209e-05,259.76,259.73,0.02732914]
[1737830538722,3.209e-05,259.76,259.66,3.8516]
[1737830539022,9.01647111,259.72,259.61,2.6119]
[1737830540021,0.02641022,259.69,259.61,2.6119]
[1737830540321,3.87771022,259.69,259.61,2.6119]
[1737830541819,0.02641022,259.69,259.61,2.6119]
[1737830542921,0.02641022,259.69,259.67,3.8515]
[1737830543123,9.01647111,259.76,259.61,2.6119]
[1737830543124,9.01647111,259.81,259.61,11.62837111]
[1737830543326,9.01647111,259.81,259.65,9.01647111]
[1737830543531,9.01647111,259.81,259.74,3.8505]
[1737830544019,9.01647111,259.81,259.66,1.3456]
[1737830544020,9.01647111,259.81,259.7,3.851]
[1737830544225,0.02660498,259.8,259.66,1.3456]
[1737830545526,0.02660498,259.8,259.75,3.8503]
[1737830546721,0.02660498,259.8,259.66,1.3456]
[1737830546722,3.85,259.78,259.71,3.8509]
[1737830547227,9.01647111,259.76,259.66,1.3456]
[1737830547627,0.02871999,259.74,259.66,5.1972]
[1737830548728,0.02871999,259.74,259.66,1.3456]
[1737830549724,3.87921999,259.74,259.67,3.8515]
[1737830550125,0.02871999,259.74,259.66,1.3456]
[1737830550832,0.02871999,259.74,259.67,0.02668965]
[1737830551229,0.02871999,259.74,259.69,3.8512]
[1737830551529,0.02871999,259.74,259.67,0.02668965]
[1737830551729,9.01647111,259.71,259.67,0.02668965]
[1737830552128,3.8514,259.69,259.67,0.02668965]
[1737830553135,9.01647111,259.71,259.56,1.2812]
[1737830553726,14.50268146,259.71,259.56,1.2812]
[1737830553927,14.50268146,259.71,259.59,3.8527]
[1737830554328,0.02871465,259.68,259.59,3.8527]
[1737830554524,0.02871465,259.68,259.56,1.2812]
[1737830554930,0.02871465,259.68,259.58,14.50268146]
[1737830555232,1.2645,259.86,259.58,14.50268146]
[1737830556231,0.02571279,259.74,259.7,3.8511]
[1737830556525,1.2645,259.86,259.63,14.50268146]
[1737830556729,0.02714421,259.75,259.69,0.02884645]
[1737830557123,0.02714421,259.75,259.72,3.8507]
[1737830557330,0.02714421,259.75,259.69,0.02884645]
[1737830558227,0.02714421,259.75,259.73,3.8506]
[1737830561350,0.02714421,259.75,259.69,0.02884645]
[1737830561542,0.02714421,259.75,259.72,3.8508]
[1737830562643,0.02714421,259.75,259.73,3.8506]
[1737830563742,0.02714421,259.75,259.74,3.8505]
[1737830565451,0.02714421,259.75,259.69,0.02884645]
[1737830567246,3.8507,259.73,259.69,0.02884645]
[1737830568748,0.02714421,259.75,259.73,3.8506]
[1737830570355,0.02714421,259.75,259.74,3.8505]
[1737830572548,0.02714421,259.75,259.71,3.8508]
[1737830573354,0.02714421,259.75,259.69,0.02884645]
[1737830573751,14.50268146,259.7,259.54,142.58134425]
[1737830574051,14.50268146,259.65,259.54,13.77040641]
[1737830574253,2.5064,259.69,259.51,132.66433784]
[1737830574954,0.02740616,259.63,259.54,3.8534]
[1737830576344,0.02740616,259.63,259.47,17.26268146]
[1737830576548,14.50268146,259.65,259.51,3.8538]
[1737830576751,14.50268146,259.65,259.43,3.7917]
[1737830576752,3.8786036,259.58,259.43,3.7917]
[1737830577352,3.8532,259.56,259.46,3.8546]
[1737830578357,3.8536,259.54,259.44,3.8549]
[1737830578656,14.50268146,259.65,259.43,3.7917]
[1737830578851,0.02795742,259.52,259.45,3.8548]
[1737830579051,14.50268146,259.6,259.37,14.50268146]
[1737830579254,0.0257225,259.51,259.35,6.5257]
[1737830579550,1.2346,259.59,259.35,6.5257]
[1737830579551,0.02629663,259.46,259.35,6.5257]
[1737830579752,0.02629663,259.46,259.38,14.50268146]
[1737830580356,0.02629663,259.46,259.35,6.5257]
[1737830581059,0.02629663,259.46,259.41,3.8553]
[1737830581252,0.02629663,259.46,259.35,6.5257]
[1737830582051,0.02629663,259.46,259.44,3.8549]
[1737830582461,1.2346,259.59,259.35,6.5257]
[1737830582660,1.2346,259.59,259.42,0.02569739]
[1737830582861,1.2346,259.59,259.38,14.50268146]
[1737830583361,3.853,259.58,259.49,3.8542]
[1737830583563,14.50268146,259.65,259.43,14.50268146]
[1737830583765,0.02838329,259.56,259.51,0.02602009]
[1737830584454,0.02838329,259.56,259.55,3.8533]
[1737830586159,0.02838329,259.56,259.51,0.02602009]
[1737830586661,0.02838329,259.56,259.51,3.87992009]
[1737830587361,0.02838329,259.56,259.51,0.02602009]
[1737830587568,0.02838329,259.56,259.52,3.8537]
[1737830587967,0.02838329,259.56,259.51,0.02602009]
[1737830588767,0.02838329,259.56,259.52,3.8538]
[1737830589564,0.02838329,259.56,259.54,3.8534]
[1737830593767,2.5694,259.69,259.52,3.8007]
[1737830593969,1.332,259.74,259.62,3.8523]
[1737830594369,3.8513,259.69,259.62,3.8523]
[1737830595073,0.02426994,259.68,259.63,0.02445565]
[1737830595372,3.87566994,259.68,259.63,0.02445565]
[1737830595671,3.87566994,259.68,259.52,3.8007]
[1737830595870,3.8514,259.68,259.52,3.8007]
[1737830596566,3.8514,259.68,259.61,3.8523]
[1737830596767,0.02476277,259.63,259.57,0.02552549]
[1737830596967,6.277e-05,259.63,259.57,0.02552549]
[1737830597967,6.277e-05,259.63,259.61,3.8524]
[1737830598769,6.277e-05,259.63,259.62,3.8523]
[1737830613382,12.9125027,259.82,259.75,3.8503]
[1737830614478,0.02635861,259.81,259.76,0.02956067]
[1737830614678,3.87585861,259.81,259.76,0.02956067]
[1737830615182,3.8499,259.79,259.76,0.02956067]
[1737830615382,9.0630027,259.78,259.76,0.02956067]
[1737830615681,9.0630027,259.78,259.57,9.0630027]
[1737830615982,9.0630027,259.74,259.58,0.70744031]
[1737830616594,3.8507,259.73,259.62,3.8522]
[1737830616796,3.8507,259.73,259.63,0.02727561]
[1737830616797,0.02871506,259.69,259.63,0.02727561]
[1737830617186,0.02871506,259.69,259.65,3.8518]
[1737830617395,0.02871506,259.69,259.63,0.02727561]
[1737830617996,9.0630027,259.65,259.63,0.02727561]
[1737830618194,9.0630027,259.65,259.53,3.8535]
[1737830618696,9.0630027,259.65,259.45,9.0630027]
[1737830618896,2.5075,259.68,259.49,9.0630027]
[1737830619093,3.8521,259.64,259.45,9.0630027]
[1737830619299,0.02683801,259.61,259.52,3.8537]
[1737830620199,0.02683801,259.61,259.53,3.8536]
[1737830620397,3.8523,259.62,259.53,3.8536]
[1737830620596,0.0277961,259.6,259.53,3.8536]
[1737830621399,0.0277961,259.6,259.45,9.0630027]
[1737830621795,0.0277961,259.6,259.46,0.70773888]
[1737830622698,0.0277961,259.6,259.45,9.0630027]
[1737830624498,0.0277961,259.6,259.52,3.8537]
[1737830625505,0.0277961,259.6,259.53,3.8536]
[1737830627003,0.0277961,259.6,259.58,3.8529]
[1737830629701,9.61e-05,259.6,259.58,3.8529]
[1737830634507,2.4962,259.77,259.58,9.0630027]
[1737830634714,2.4962,259.77,259.69,3.8511]
[1737830635109,2.4962,259.77,259.58,9.0630027]
[1737830635312,2.4962,259.77,259.7,3.8511]
[1737830635810,0.0259666,259.76,259.71,0.02928571]
[1737830636806,3.8504,259.75,259.71,0.02928571]
[1737830637707,3.8504,259.75,259.58,9.0630027]
[1737830637912,2.4962,259.77,259.58,9.0630027]
[1737830638409,3.8507,259.73,259.58,9.0630027]
[1737830638607,9.0630027,259.74,259.56,2.76]
[1737830638809,0.02723793,259.68,259.54,9.0630027]
[1737830639911,0.02723793,259.68,259.61,3.8524]
[1737830639912,3.87863793,259.68,259.61,3.8524]
[1737830640614,0.02723793,259.68,259.61,3.8524]
[1737830643817,0.02723793,259.68,259.54,9.0630027]
[1737830644013,0.02723793,259.68,259.58,3.8528]
[1737830644212,9.0630027,259.7,259.58,3.8528]
[1737830644413,0.02725514,259.66,259.58,3.8528]
[1737830644812,3.8519,259.65,259.58,3.8528]
[1737830645313,9.09025784,259.66,259.58,3.8528]
[1737830645314,3.852,259.64,259.58,3.8528]
[1737830648115,0.02725514,259.66,259.6,3.8526]
[1737830648316,9.0630027,259.7,259.51,3.7501]
[1737830648520,0.02603589,259.66,259.51,3.7501]
[1737830649319,0.02603589,259.66,259.63,3.8521]
[1737830649823,0.02603589,259.66,259.64,3.8519]
[1737830651220,0.02603589,259.66,259.54,11.70476342]
[1737830651422,0.02603589,259.66,259.65,3.8519]
[1737830654131,9.08903859,259.66,259.52,11.70476342]
[1737830654331,9.08903859,259.66,259.51,3.7501]
[1737830654629,9.08903859,259.66,259.51,15.45486342]
[1737830654923,9.08903859,259.66,259.51,3.7501]
[1737830655124,3.8522,259.63,259.51,3.7501]
[1737830655324,9.0630027,259.62,259.51,3.7501]
[1737830655522,0.02937811,259.6,259.51,3.7501]
[1737830656231,0.02937811,259.6,259.55,3.8532]
[1737830657327,0.02937811,259.6,259.56,3.8532]
[1737830658634,0.02937811,259.6,259.53,3.8535]
[1737830658929,9.0630027,259.58,259.43,11.70476342]
[1737830659128,9.0630027,259.58,259.43,15.55586342]
[1737830659129,3.8533,259.56,259.43,15.55586342]
[1737830659332,0.02556893,259.53,259.43,3.8511]
[1737830660533,0.02556893,259.53,259.5,3.854]
[1737830661128,0.02556893,259.53,259.48,3.8543]
[1737830661737,0.02556893,259.53,259.47,3.8545]
[1737830661934,0.02556893,259.53,259.38,11.70476342]
[1737830662132,0.02556893,259.53,259.37,20.76776612]
[1737830662333,9.0630027,259.54,259.38,12.41276288]
[1737830662633,0.02612723,259.48,259.37,20.76776612]
[1737830662834,0.02612723,259.48,259.38,0.70799581]
[1737830663329,0.02612723,259.48,259.46,3.8546]
[1737830668639,0.02612723,259.48,259.47,3.8545]
[1737830680743,0.02612723,259.48,259.41,5.80702942]
[1737830681144,0.02612723,259.48,259.47,3.8545]
[1737830682044,5.83315665,259.48,259.47,3.8545]
[1737830683545,5.83315665,259.48,259.38,5.80702942]
[1737830683744,5.80702942,259.45,259.39,0.70794924]
[1737830684040,5.80702942,259.45,259.36,3.8066]
[1737830684242,5.80702942,259.45,259.43,3.8551]
[1737830684445,5.80702942,259.45,259.36,3.8066]
[1737830684641,5.80702942,259.45,259.38,5.80702942]
[1737830685151,5.80702942,259.45,259.36,3.8066]
[1737830685345,5.80702942,259.42,259.36,3.8066]
[1737830685547,5.80702942,259.39,259.36,3.8066]
[1737830686250,5.80702942,259.39,259.37,3.8559]
[1737830687350,5.80702942,259.39,259.34,3.8565]
[1737830687651,5.80702942,259.36,259.34,3.8565]
[1737830687849,5.80702942,259.36,259.28,2.6449]
[1737830687850,5.80702942,259.36,259.3,3.857]
[1737830688053,5.80702942,259.33,259.28,2.6449]
[1737830688450,5.83472364,259.35,259.28,2.6449]
[1737830688651,0.02769422,259.35,259.33,3.8565]
[1737830690160,5.83472364,259.35,259.29,3.8571]
[1737830690351,5.80702942,259.32,259.29,3.8571]
[1737830691054,5.80702942,259.32,259.3,3.857]
[1737830691559,5.80702942,259.32,259.25,3.40798383]
[1737830691855,5.80702942,259.3,259.29,3.8572]
[1737830692253,5.80702942,259.3,259.27,3.8575]
[1737830692551,5.83472364,259.35,259.26,5.80702942]
[1737830692759,0.02769422,259.35,259.34,3.8565]
[1737830693155,5.83472364,259.35,259.34,3.8565]
[1737830693556,5.83472364,259.35,259.32,3.8567]
[1737830694258,5.80702942,259.33,259.32,3.8567]
[1737830694760,5.83472364,259.35,259.32,3.8567]
[1737830695160,0.02769422,259.35,259.33,3.8566]
[1737830697651,0.02769422,259.35,259.28,5.80702942]
[1737830697854,0.02769422,259.35,259.31,3.8569]
[1737830698254,5.80702942,259.33,259.22,5.80702942]
[1737830698565,5.80702942,259.3,259.22,5.80702942]
[1737830699062,0.02958684,259.29,259.25,3.8577]
[1737830699259,0.02958684,259.29,259.22,5.80702942]
[1737830700159,5.80702942,259.28,259.19,5.80702942]
[1737830700663,0.02778804,259.26,259.21,3.8584]
[1737830702565,0.02778804,259.26,259.14,9.09083419]
[1737830702765,0.02778804,259.26,259.18,9.09083419]
[1737830703266,0.02778804,259.26,259.24,3.8579]
[1737830703761,9.09083419,259.25,259.09,9.09083419]
[1737830703964,12.92623419,259.25,259.1,0.70883302]
[1737830704159,0.02497809,259.2,259.04,9.09083419]
[1737830704360,3.8583,259.22,259.09,3.8601]
[1737830704566,12.92623419,259.25,259.04,9.09083419]
[1737830704766,0.02682986,259.18,259.05,0.70890967]
[1737830705362,0.02682986,259.18,259.09,3.86]
[1737830707071,3.88572986,259.18,259.07,3.8604]
[1737830707271,3.88572986,259.18,258.98,19.18616891]
[1737830707272,9.09083419,259.13,258.96,9.09083419]
[1737830707570,9.09083419,259.13,258.97,0.70920424]
[1737830707765,0.02552151,259.07,258.97,0.70920424]
[1737830708070,0.02552151,259.07,258.98,3.8617]
[1737830708271,0.02552151,259.07,258.96,9.09083419]
[1737830708667,0.02552151,259.07,258.97,0.7092683]
[1737830709570,0.02552151,259.07,259.0,9.09083419]
[1737830709774,0.02552151,259.07,259.01,0.7092683]
[1737830711366,0.02552151,259.07,259.05,3.8607]
[1737830711568,0.02552151,259.07,258.92,10.43083419]
[1737830711871,12.95153419,259.06,258.96,3.862]
[1737830712072,9.09083419,259.06,258.89,1.3298]
[1737830712271,0.02802366,259.04,258.9,0.70941439]
[1737830713178,9.09083419,258.93,258.78,19.18616891]
[1737830713474,9.09083419,258.93,258.77,132.66433784]
[1737830713475,9.09083419,258.99,258.79,0.70965684]
[1737830713672,0.02907215,258.88,258.85,3.8637]
[1737830713870,12.95263419,258.99,258.85,3.8637]
[1737830714072,0.0278149,258.89,258.85,3.8637]
[1737830714274,0.02664972,258.9,258.85,3.8637]
[1737830714573,0.02664972,258.9,258.87,3.8634]
[1737830714874,0.02664972,258.9,258.79,9.09083419]
[1737830715071,0.02664972,258.9,258.88,3.8632]
[1737830715273,0.02664972,258.9,258.77,132.66433784]
[1737830715469,9.09083419,258.88,258.78,0.70980563]
[1737830715866,9.09083419,258.88,258.73,1.2795]
[1737830716076,9.09083419,258.88,258.74,0.70980701]
[1737830716275,0.02611716,258.83,258.74,0.70980701]
[1737830717171,0.02611716,258.83,258.8,3.8645]
[1737830717776,0.02611716,258.83,258.81,3.8643]
[1737830719379,0.02611716,258.83,258.79,3.8645]
[1737830719774,0.02611716,258.83,258.8,0.70982688]
[1737830719974,0.02611716,258.83,258.73,1.2795]
[1737830720278,0.02611716,258.83,258.74,0.70983159]
[1737830720675,9.09083419,258.92,258.75,9.80066578]
[1737830720874,1.313,258.97,258.75,9.80066578]
[1737830720875,1.327,258.98,258.79,9.09083419]
[1737830721179,9.09083419,259.0,258.86,3.8636]
[1737830721481,9.09083419,259.0,258.79,9.09083419]
[1737830721682,9.09083419,259.0,258.8,0.70956778]
[1737830721876,0.02528429,258.92,258.87,0.02536644]
[1737830722179,9.09083419,259.04,258.87,9.11620063]
[1737830722485,9.09083419,258.99,258.88,1.2798]
[1737830723177,0.02572086,258.96,258.91,0.02696556]
[1737830723879,9.09083419,258.95,258.91,0.02696556]
[1737830724682,9.09083419,258.95,258.8,1.2798]
[1737830724878,9.09083419,258.95,258.81,0.70961614]
[1737830725480,9.09083419,258.95,258.8,1.2798]
[1737830725682,0.02867181,258.91,258.85,0.02956389]
[1737830726782,0.02867181,258.91,258.87,3.8634]
[1737830728185,0.02867181,258.91,258.85,0.02956389]
[1737830729084,0.02867181,258.91,258.85,3.89326389]
[1737830729680,0.02867181,258.91,258.85,0.02956389]
[1737830730384,0.02867181,258.91,258.89,3.8631]
[1737830734494,0.02867181,258.91,258.86,9.09083419]
[1737830734790,0.02867181,258.91,258.9,3.863]
[1737830735490,0.02867181,258.91,258.89,3.8631]
[1737830735884,0.02867181,258.91,258.85,0.02956389]
[1737830736993,0.02867181,258.91,258.89,3.8631]
[1737830737783,3.862,258.98,258.89,3.8631]
[1737830737987,9.09083419,259.19,258.99,9.09083419]
[1737830738800,3.8595,259.14,259.04,3.8608]
[1737830738998,0.02744024,259.12,259.06,0.02874296]
[1737830739192,9.09083419,259.15,258.99,9.09083419]
[1737830739395,0.02576349,259.12,259.08,3.8603]
[1737830739595,3.8593,259.16,259.08,3.8603]
[1737830739794,0.02735375,259.13,259.08,3.8603]
[1737830739993,0.02735375,259.13,259.07,0.0250784]
[1737830740493,0.02735375,259.13,259.11,12.95063419]
[1737830740693,3.8382,259.22,259.11,9.09083419]
[1737830741293,3.8582,259.23,259.11,9.09083419]
[1737830741798,0.02538738,259.2,259.14,0.02819625]
[1737830742198,0.02538738,259.2,259.14,3.88749625]
[1737830742398,3.88398738,259.2,259.14,0.02819625]
[1737830744903,3.8587,259.19,259.14,0.02819625]
[1737830745603,3.8587,259.19,259.12,3.85123856]
[1737830746103,3.8587,259.19,259.13,3.8595]
[1737830746700,3.88319136,259.19,259.13,3.88550473]
[1737830747701,3.88319136,259.19,259.13,0.02600473]
[1737830747904,3.8589,259.18,259.13,0.02600473]
[1737830748507,0.02449136,259.19,259.13,0.02600473]
[1737830748508,3.8593,259.15,259.13,0.02600473]
[1737830750106,3.8603,259.09,258.94,4.0891]
[1737830750305,14.55373153,259.17,258.95,3.18315168]
[1737830750509,14.55373153,259.17,258.96,0.70925168]
[1737830750906,14.55373153,259.17,259.03,3.861]
[1737830751206,0.0290268,259.13,259.07,0.02528673]
[1737830751403,3.8603,259.09,259.07,0.02528673]
[1737830752300,3.8887268,259.13,259.07,0.02528673]
[1737830752808,3.8598,259.12,259.07,0.02528673]
[1737830754303,3.8599,259.11,259.07,0.02528673]
[1737830754510,0.0290268,259.13,259.07,0.02528673]
[1737830754910,3.8601,259.1,259.07,0.02528673]
[1737830755409,0.0290268,259.13,259.07,0.02528673]
[1737830755613,3.8602,259.09,259.07,0.02528673]
[1737830756709,3.8603,259.08,259.07,0.02528673]
[1737830757405,0.0290268,259.13,259.07,0.02528673]
[1737830759308,3.8602,259.09,259.07,0.02528673]
[1737830759514,0.0290268,259.13,259.07,0.02528673]
[1737830760013,3.8603,259.08,259.07,0.02528673]
[1737830761412,3.8613,259.02,258.97,3.8619]
[1737830762519,3.88666472,259.02,258.94,1.2891]
[1737830762817,3.8618,258.99,258.9,0.77249903]
[1737830763013,0.02536472,259.02,258.9,0.77249903]
[1737830763213,0.02536472,259.02,258.89,3.8631]
[1737830763515,3.8621,258.97,258.87,3.8646]
[1737830764018,0.02783561,258.95,258.91,3.8629]
[1737830764918,0.02783561,258.95,258.89,3.8631]
[1737830765819,3.8626,258.93,258.86,3.8636]
[1737830766219,0.02628042,258.92,258.86,3.8636]
[1737830767619,0.02628042,258.92,258.82,9.11284408]
[1737830767819,0.02628042,258.92,258.88,3.8633]
[1737830768012,0.02628042,258.92,258.82,9.11284408]
[1737830768319,0.02628042,258.92,258.9,3.863]
[1737830769220,2.6104,259.06,258.91,9.11284408]
[1737830769617,3.8606,259.07,258.99,3.8616]